fUSD/lending_fUSD_20260504
["ID","MTS","AMOUNT","RATE_DAILY","PERIOD"]
[421546706,1777852467000,746.8273414,8.246e-05,2]
[421546704,1777852467000,1200.0,0.00010698,2]
[421546702,1777852467000,300.0,0.00010698,2]
[421546703,1777852467000,300.0,0.00010698,2]
[421546701,1777852467000,-139.31428247,0.0001251,2]
[421546700,1777852467000,-74.15444425,0.00011662,2]
[421546709,1777852468000,466.0,8.246e-05,2]
[421546710,1777852468000,250.0,6.107e-05,2]
[421546711,1777852468000,250.0,5.829e-05,2]
[421546712,1777852468000,-213.46872672,0.0001176,2]
[421546713,1777852469000,-213.46872672,0.00011662,2]
[421546714,1777852470000,-206.53127328,0.0001176,2]
[421546716,1777852470000,-1334.14392558,0.00011768,2]
[421546715,1777852470000,-345.85607442,0.00011768,2]
[421546717,1777852470000,-1737.85308119,0.000124,2]
[421546718,1777852470000,-551.5277873,0.000124,2]
[421546723,1777852470000,-1462.75974973,0.00012573,2]
[421546721,1777852470000,-152.0,0.00012563,7]
[421546725,1777852470000,-998.10777482,0.00012657,2]
[421546720,1777852470000,-10.68571753,0.0001251,2]
[421546719,1777852470000,-181.6531785,0.00012459,2]
[421546724,1777852470000,-3.70025027,0.00012657,2]
[421546728,1777852470000,-225.96339879,0.00012657,2]
[421546726,1777852470000,-150.0,0.00012657,2]
[421546722,1777852470000,-2264.30933707,0.00012573,2]
[421546729,1777852470000,-582.06363808,0.00012657,2]
[421546727,1777852470000,-500.0,0.00012657,2]
[421546741,1777852470000,-503.44057045,0.00012658,2]
[421546740,1777852470000,-152.0,0.00012515,7]
[421546739,1777852470000,-405974.13792933,0.00012658,2]
[421546737,1777852470000,-829.67010334,0.00012658,2]
[421546738,1777852470000,-380.52932165,0.00012658,2]
[421546735,1777852470000,-11298.24190853,0.00012658,2]
[421546734,1777852470000,-1034.07872918,0.00012658,2]
[421546733,1777852470000,227.0,5.552e-05,2]
[421546732,1777852470000,-213.46872672,0.00012658,2]
[421546731,1777852470000,-552408.27359927,0.00012658,2]
[421546730,1777852470000,-339.92292616,0.00012657,2]
[421546736,1777852470000,-48993.48432967,0.00012658,2]
[421546763,1777852471000,-165.78,0.00012961,2]
[421546759,1777852471000,-2000.0,0.00012934,2]
[421546758,1777852471000,-587.0,0.00012926,2]
[421546766,1777852471000,-762.98,0.00013065,2]
[421546761,1777852471000,-150.0,0.00012945,2]
[421546767,1777852471000,-578.20924308,0.00013213,2]
[421546760,1777852471000,-2351.0,0.00012945,2]
[421546762,1777852471000,-150.0,0.00012945,2]
[421546768,1777852471000,-759.37933211,0.00013213,2]
[421546764,1777852471000,-779.0,0.00013021,5]
[421546756,1777852471000,-299.99,0.00012893,2]
[421546765,1777852471000,-2000.0,0.00013029,2]
[421546757,1777852471000,-1300.0,0.000129,4]
[421546769,1777852471000,-174.61919141,0.00013213,2]
[421546755,1777852471000,-150.99,0.00012893,2]
[421546753,1777852471000,-150.0,0.0001287,2]
[421546749,1777852471000,-501.29468145,0.00012673,2]
[421546748,1777852471000,-500.0,0.00012673,2]
[421546754,1777852471000,-150.0,0.00012878,2]
[421546751,1777852471000,-500.0,0.00012673,2]
[421546750,1777852471000,-500.0,0.00012673,2]
[421546745,1777852471000,-168.18819681,0.00012673,2]
[421546747,1777852471000,-594.02702041,0.00012673,2]
[421546746,1777852471000,-500.0,0.00012673,2]
[421546744,1777852471000,-500.0,0.00012673,2]
[421546743,1777852471000,-152.0,0.00012661,7]
[421546742,1777852471000,-215026.9770762,0.00012658,2]
[421546752,1777852471000,-600.0,0.000128,4]
[421546770,1777852471000,-500.0,0.00013221,2]
[421546791,1777852471000,-500.0,0.00013698,2]
[421546775,1777852471000,-165.78,0.00013339,2]
[421546797,1777852471000,-181.08010149,0.00013761,2]
[421546800,1777852471000,-1900.0,0.000139,5]
[421546799,1777852471000,-166.66,0.00013836,2]
[421546798,1777852471000,-504.47277308,0.00013768,2]
[421546795,1777852471000,-200.0,0.00013699,2]
[421546796,1777852471000,-166.66,0.00013699,2]
[421546790,1777852471000,-500.0,0.00013698,2]
[421546793,1777852471000,-500.0,0.00013698,2]
[421546788,1777852471000,-500.0,0.00013698,2]
[421546784,1777852471000,-500.0,0.00013698,2]
[421546787,1777852471000,-500.0,0.00013698,2]
[421546785,1777852471000,-500.0,0.00013698,2]
[421546794,1777852471000,-2500.0,0.00013699,2]
[421546771,1777852471000,-1000.0,0.00013221,2]
[421546789,1777852471000,-500.0,0.00013698,2]
[421546786,1777852471000,-500.0,0.00013698,2]
[421546772,1777852471000,-245.69270576,0.00013221,2]
[421546780,1777852471000,-500.0,0.00013698,2]
[421546776,1777852471000,-500.0,0.00013698,2]
[421546778,1777852471000,-500.0,0.00013698,2]
[421546777,1777852471000,-500.0,0.00013698,2]
[421546773,1777852471000,-318.92729965,0.00013221,2]
[421546779,1777852471000,-212.09130368,0.00013698,2]
[421546781,1777852471000,-500.0,0.00013698,2]
[421546782,1777852471000,-500.0,0.00013698,2]
[421546792,1777852471000,-500.0,0.00013698,2]
[421546783,1777852471000,-500.0,0.00013698,2]
[421546774,1777852471000,-807.10594255,0.00013221,2]
[421546808,1777852472000,-166.66,0.00014247,2]
[421546820,1777852472000,-1000.94673713,0.00014402,2]
[421546810,1777852472000,-6964.43759722,0.0001425,2]
[421546809,1777852472000,-1316.99666893,0.0001425,2]
[421546807,1777852472000,-3292.0,0.00014239,2]
[421546802,1777852472000,-622.0,0.00013937,5]
[421546804,1777852472000,-500.0,0.0001398,2]
[421546806,1777852472000,-823.0,0.00014209,2]
[421546801,1777852472000,-2000.0,0.00013929,2]
[421546805,1777852472000,-166.66,0.0001411,2]
[421546814,1777852472000,-5000.0,0.0001425,2]
[421546803,1777852472000,-166.66,0.00013973,2]
[421546817,1777852472000,-150.0,0.00014384,2]
[421546815,1777852472000,-479.81424122,0.00014302,2]
[421546816,1777852472000,-187.78006525,0.00014309,2]
[421546827,1777852472000,150.0,5.996e-05,2]
[421546826,1777852472000,340.26065593,0.0001,2]
[421546813,1777852472000,-5000.0,0.0001425,2]
[421546823,1777852472000,-7865.9,0.00014402,2]
[421546822,1777852472000,-931.5460343,0.00014402,2]
[421546825,1777852472000,339.0,0.0001,2]
[421546819,1777852472000,-104394.78998266,0.00014402,2]
[421546812,1777852472000,-5000.0,0.0001425,2]
[421546818,1777852472000,-166.66,0.00014384,2]
[421546811,1777852472000,-5000.0,0.0001425,2]
[421546821,1777852472000,-10123.25108358,0.00014402,2]
[421546824,1777852472000,339.0,0.0001,2]
[421546831,1777852473000,-213.46872672,0.00011046,2]
[421546830,1777852473000,469.02773,7.945e-05,2]
[421546829,1777852473000,193.0,6.107e-05,2]
[421546828,1777852473000,150.0,0.00010698,2]
[421546833,1777852474000,-213.46872672,0.00010879,2]
[421546832,1777852474000,-213.46872672,0.00011046,2]
[421546834,1777852475000,-213.46872672,0.00010879,2]
[421546835,1777852475000,230.0,5.829e-05,2]
[421546836,1777852475000,-213.46872672,0.00010852,2]
[421546837,1777852477000,-300.0,0.00010852,2]
[421546838,1777852477000,406.89427267,0.0001,2]
[421546839,1777852477000,93.10572733,0.0001,2]
[421546840,1777852477000,500.0,0.0001,2]
[421546846,1777852477000,500.0,0.0001,2]
[421546843,1777852477000,-300.0,0.00010852,2]
[421546842,1777852477000,500.0,0.0001,2]
[421546844,1777852477000,500.0,0.0001,2]
[421546845,1777852477000,500.0,0.0001,2]
[421546841,1777852477000,500.0,0.0001,2]
[421546849,1777852478000,-300.0,0.00010852,2]
[421546848,1777852478000,-300.0,0.00010852,2]
[421546847,1777852478000,-300.0,0.00010852,2]
[421546850,1777852479000,-286.53127328,0.00010852,2]
[421546851,1777852479000,-13.46872672,0.00010879,2]
[421546854,1777852479000,-300.0,0.00010879,2]
[421546852,1777852479000,250.0,6.107e-05,2]
[421546853,1777852479000,230.0,5.829e-05,2]
[421546857,1777852480000,-300.0,0.00010959,2]
[421546856,1777852480000,-50.79618016,0.00010959,2]
[421546855,1777852480000,-249.20381984,0.00010879,2]
[421546862,1777852481000,306.90427267,9.976e-05,2]
[421546863,1777852481000,280.09572733,9.976e-05,2]
[421546861,1777852481000,420.0,9.069e-05,2]
[421546860,1777852481000,150.0,9.999e-05,2]
[421546859,1777852481000,300.0,8.245e-05,2]
[421546858,1777852481000,250.0,7.683e-05,2]
[421546864,1777852538000,227.0,5.552e-05,2]
[421546865,1777852541000,250.0,6.107e-05,2]
[421546867,1777852541000,224.30294412,0.00010206,2]
[421546868,1777852541000,300.45549685,8.255e-05,2]
[421546866,1777852541000,250.0,8.255e-05,2]
[421546869,1777852542000,227.0,5.552e-05,2]
[421546873,1777852745000,-9.07171787,0.0001,2]
[421546872,1777852745000,-240.92902107,0.0001,2]
[421546871,1777852745000,257.39191257,0.0002617,120]
[421546877,1777852995000,79.16470468,6.05e-05,2]
[421546878,1777852995000,689.31529532,6.05e-05,2]
[421546880,1777852996000,768.48,6.687e-05,2]
[421546879,1777852996000,768.48,6.369e-05,2]
[421546882,1777852996000,339.47453877,7.006e-05,2]
[421546883,1777852996000,768.48,7.324e-05,2]
[421546881,1777852996000,429.00546123,7.006e-05,2]
[421546886,1777852996000,10.36621778,8.279e-05,2]
[421546884,1777852996000,768.48,7.642e-05,2]
[421546887,1777852996000,758.11378222,8.279e-05,2]
[421546889,1777852996000,768.48,8.916e-05,2]
[421546888,1777852996000,768.48,8.598e-05,2]
[421546885,1777852996000,768.48,7.961e-05,2]
[421546891,1777853030000,-246.74,9.235e-05,2]
[421546890,1777853030000,-301.21727862,9.235e-05,2]
[421546892,1777853032000,-220.52272138,9.235e-05,2]
[421546893,1777853032000,-80.69455724,9.553e-05,2]
[421546898,1777853033000,-301.21727862,9.553e-05,2]
[421546897,1777853033000,152.0,0.00010494,7]
[421546896,1777853033000,152.0,0.00010494,7]
[421546895,1777853033000,152.0,0.00010483,7]
[421546894,1777853033000,152.0,0.00010366,7]
[421546899,1777853067000,-301.21727862,9.553e-05,2]
[421546901,1777853136000,-215.8663931,9.765e-05,2]
[421546903,1777853136000,360.20697433,6.05e-05,2]
[421546902,1777853136000,-301.21727862,9.234e-05,2]
[421546900,1777853136000,-85.35088552,9.553e-05,2]
[421546905,1777853137000,253.11164122,6.05e-05,2]
[421546904,1777853137000,139.79302567,6.05e-05,2]
[421546906,1777853138000,-301.21727862,9.234e-05,2]
[421546907,1777853139000,-301.21727862,9.234e-05,2]
[421546913,1777853207000,152.0,9.984e-05,7]
[421546912,1777853207000,152.0,9.974e-05,7]
[421546911,1777853207000,-6.0863931,9.765e-05,2]
[421546910,1777853207000,-295.13088552,9.764e-05,2]
[421546909,1777853207000,-4.86911448,9.764e-05,2]
[421546908,1777853207000,-296.34816414,9.234e-05,2]
[421546914,1777853209000,250.0,6.655e-05,2]
[421546915,1777853222000,798.42,0.00030137,120]
[421546916,1777853271000,300.0,8.278e-05,2]
[421546972,1777853440000,152.0,0.00010159,7]
[421546973,1777853440000,-255.24516599,9.765e-05,2]
[421547022,1777853815000,-3018.92996582,9.765e-05,2]
[421547021,1777853815000,-1200.0,9.764e-05,2]
[421547032,1777853837000,-585.87066138,0.00010145,2]
[421547031,1777853837000,-302.11628587,0.0001,2]
[421547030,1777853837000,-245.70462933,0.0001,2]
[421547028,1777853837000,-300.0,9.997e-05,2]
[421547027,1777853837000,-300.0,9.997e-05,2]
[421547029,1777853837000,-300.0,9.998e-05,2]
[421547026,1777853837000,-300.0,9.996e-05,2]
[421547024,1777853837000,-768.48,9.872e-05,2]
[421547023,1777853837000,-944.75483401,9.765e-05,2]
[421547025,1777853837000,-172.00355523,9.872e-05,2]
[421547034,1777853838000,-768.48,0.0001019,2]
[421547033,1777853838000,-414.12933862,0.00010145,2]
[421547036,1777853838000,-2735.3593728,0.00010206,2]
[421547037,1777853838000,-500.0,0.00010239,2]
[421547035,1777853838000,-3036.3206272,0.00010206,2]
[421547038,1777853843000,-1200.0,9.997e-05,2]
[421547057,1777853845000,-6472.3,0.00012055,2]
[421547061,1777853845000,-200.0,0.00012322,2]
[421547058,1777853845000,-768.48,0.00012101,2]
[421547055,1777853845000,-245.70462933,0.00011735,2]
[421547056,1777853845000,-768.48,0.00011782,2]
[421547053,1777853845000,-768.48,0.00011464,2]
[421547054,1777853845000,-808.31,0.00011649,2]
[421547052,1777853845000,-768.48,0.00011145,2]
[421547051,1777853845000,-3529.63221428,0.00011027,2]
[421547049,1777853845000,-150.0,0.00010959,2]
[421547050,1777853845000,-181.17251372,0.00010959,2]
[421547047,1777853845000,-768.48,0.00010827,2]
[421547045,1777853845000,-227.76105576,0.00010744,2]
[421547046,1777853845000,-1018.58979373,0.00010744,2]
[421547043,1777853845000,-500.0,0.00010444,2]
[421547044,1777853845000,-768.48,0.00010508,2]
[421547042,1777853845000,-209.96,0.00010381,2]
[421547041,1777853845000,-3478.77982268,0.00010363,2]
[421547039,1777853845000,-464.29087844,0.00010354,2]
[421547040,1777853845000,-344.01912156,0.00010354,2]
[421547048,1777853845000,-150.0,0.00010959,2]
[421547060,1777853845000,-989.61,0.00012238,2]
[421547059,1777853845000,-2000.0,0.00012216,2]
[421547062,1777853845000,-171.81,0.00012329,2]
[421547084,1777853845000,-366.38525388,0.00012551,2]
[421547083,1777853845000,-227.39982342,0.00012551,2]
[421547082,1777853845000,-692.55459182,0.00012459,2]
[421547081,1777853845000,-1194.34858037,0.00012459,2]
[421547080,1777853845000,-192.0,0.00012411,2]
[421547064,1777853845000,-339.73,0.00012342,2]
[421547079,1777853845000,-284.67244094,0.00012459,2]
[421547077,1777853845000,-374.68915625,0.00012459,2]
[421547076,1777853845000,-11298.24190853,0.00012459,2]
[421547074,1777853845000,-743.18434405,0.00012459,2]
[421547078,1777853845000,-2000.0,0.00012459,2]
[421547073,1777853845000,-1927.45301056,0.00012459,2]
[421547072,1777853845000,-1580.24818689,0.00012459,2]
[421547071,1777853845000,-1439.26886385,0.00012459,2]
[421547069,1777853845000,-547.40929043,0.00012459,2]
[421547070,1777853845000,-2527.28622367,0.00012459,2]
[421547068,1777853845000,-1309.31524679,0.00012459,2]
[421547067,1777853845000,-37260.27832592,0.00012459,2]
[421547066,1777853845000,-500.0,0.00012458,2]
[421547065,1777853845000,-8120.0599,0.00012458,2]
[421547063,1777853845000,-245.70462933,0.00012342,2]
[421547075,1777853845000,-1057.01108943,0.00012459,2]
[421547092,1777853846000,-155.0,0.00012557,2]
[421547090,1777853846000,-1938.25381918,0.00012551,2]
[421547091,1777853846000,-2696.19268466,0.00012551,2]
[421547093,1777853846000,-150.0,0.00012557,2]
[421547086,1777853846000,-312.08235909,0.00012551,2]
[421547087,1777853846000,-277.93924117,0.00012551,2]
[421547088,1777853846000,-426.5,0.00012551,2]
[421547085,1777853846000,-999.21765633,0.00012551,2]
[421547089,1777853846000,-289.4375,0.00012551,2]
[421547095,1777853846000,-500.0,0.00012557,2]
[421547096,1777853846000,-561.80101012,0.00012557,2]
[421547097,1777853846000,-495.39059497,0.00012557,2]
[421547098,1777853846000,-272.57079484,0.00012557,2]
[421547100,1777853846000,-500.0,0.00012557,2]
[421547099,1777853846000,-219.82100978,0.00012557,2]
[421547102,1777853846000,-15954.85831044,0.00012558,2]
[421547101,1777853846000,-500.0,0.00012557,2]
[421547103,1777853846000,-412.18422973,0.00012558,2]
[421547104,1777853846000,-2276.97830001,0.00012558,2]
[421547105,1777853846000,-1759.0,0.00012558,2]
[421547094,1777853846000,-500.0,0.00012557,2]
[421547108,1777853848000,-480.0,0.00012095,2]
[421547106,1777853848000,-300.0,9.996e-05,2]
[421547107,1777853848000,-420.0,0.00010996,2]
[421547110,1777853849000,-1093.0,0.00012392,2]
[421547109,1777853849000,-107.0,0.00012095,2]
[421547111,1777853860000,-1200.0,0.00012392,2]
[421547112,1777853861000,-69.91262336,0.00012392,2]
[421547113,1777853861000,-422.97230252,0.00012457,2]
[421547115,1777853863000,2000.0,0.00010526,2]
[421547114,1777853863000,2597.846081,7.945e-05,2]
[421547118,1777854349000,-1584.94695249,8.946e-05,2]
[421547117,1777854349000,-1269.91262336,8.946e-05,2]
[421547119,1777854350000,-200.0,8.946e-05,2]
[421547120,1777854351000,-200.0,8.946e-05,2]
[421547124,1777854352000,215.39,5.54e-05,2]
[421547121,1777854352000,-182.56449137,8.946e-05,2]
[421547122,1777854352000,-17.43550863,9.764e-05,2]
[421547123,1777854352000,215.39,5.263e-05,2]
[421547125,1777854352000,215.39,5.817e-05,2]
[421547132,1777854352000,215.39,7.756e-05,2]
[421547127,1777854352000,215.39,6.371e-05,2]
[421547131,1777854352000,215.39,7.479e-05,2]
[421547129,1777854352000,215.39,6.925e-05,2]
[421547126,1777854352000,215.39,6.094e-05,2]
[421547128,1777854352000,215.39,6.648e-05,2]
[421547130,1777854352000,215.39,7.202e-05,2]
[421547135,1777854353000,-200.0,8.587e-05,2]
[421547134,1777854353000,215.39,8.31e-05,2]
[421547133,1777854353000,215.39,8.033e-05,2]
[421547137,1777854453000,-15.39,8.587e-05,2]
[421547138,1777854453000,-184.61,8.864e-05,2]
[421547140,1777854454000,-169.22,9.141e-05,2]
[421547143,1777854454000,-61.56,9.418e-05,2]
[421547144,1777854454000,-138.44,9.695e-05,2]
[421547141,1777854454000,-46.17,9.141e-05,2]
[421547142,1777854454000,-153.83,9.418e-05,2]
[421547139,1777854454000,-30.78,8.864e-05,2]
[421547145,1777854455000,-76.95,9.695e-05,2]
[421547146,1777854455000,-123.05,9.764e-05,2]
[421547147,1777854477000,-200.0,9.282e-05,2]
[421547159,1777854581000,-1114.71247048,0.00010168,2]
[421547157,1777854581000,-215.39,9.972e-05,2]
[421547158,1777854581000,-300.0,9.995e-05,2]
[421547155,1777854581000,-168.16087376,9.764e-05,2]
[421547154,1777854581000,-246.0,9.694e-05,2]
[421547156,1777854581000,-188.96,9.86e-05,2]
[421547152,1777854581000,-685.50072298,9.365e-05,2]
[421547153,1777854581000,-518.7,9.365e-05,2]
[421547148,1777854581000,-915.01,9.282e-05,2]
[421547150,1777854581000,-300.0,9.36e-05,2]
[421547151,1777854581000,-1267.42927702,9.365e-05,2]
[421547149,1777854581000,-188.96,9.341e-05,2]
[421547160,1777854582000,-3437.42406722,0.00010168,2]
[421547161,1777854582000,-2038.69672765,0.00010168,2]
[421547163,1777854582000,-188.96,0.00010379,2]
[421547164,1777854582000,-994.37733957,0.00010442,2]
[421547162,1777854582000,-215.39,0.00010249,2]
[421547165,1777854583000,-347.55,0.00010027,2]
[421547168,1777854583000,-2621.69140679,0.00010511,2]
[421547167,1777854583000,-120.63266043,0.00010442,2]
[421547169,1777854583000,-392.54859321,0.00010511,2]
[421547166,1777854583000,-347.55,0.00010278,2]
[421547170,1777854583000,-200.0,0.00010513,2]
[421547172,1777854583000,-1667.94188656,0.00010527,2]
[421547174,1777854583000,-613.99358745,0.00010756,2]
[421547173,1777854583000,-347.55,0.00010529,2]
[421547171,1777854583000,-215.39,0.00010526,2]
[421547182,1777854584000,-168.16087374,0.00011343,2]
[421547175,1777854584000,-345.3040215,0.00010756,2]
[421547176,1777854584000,-347.55,0.00010779,2]
[421547177,1777854584000,-167.68,0.00010809,2]
[421547183,1777854584000,-188.96,0.00011417,2]
[421547184,1777854584000,-478.89665562,0.00011602,2]
[421547181,1777854584000,-347.55,0.0001103,2]
[421547179,1777854584000,-1054.36251636,0.00010926,2]
[421547178,1777854584000,-188.96,0.00010898,2]
[421547186,1777854584000,-739.14222478,0.00011828,2]
[421547185,1777854584000,-636.11334438,0.00011602,2]
[421547187,1777854584000,-2000.0,0.00011842,2]
[421547180,1777854584000,-150.0,0.00010959,2]
[421547188,1777854587000,-15.39,0.00011936,2]
[421547396,1777854724000,-15.39,9.763e-05,2]
[421547397,1777854725000,-15.39,9.763e-05,2]
[421547398,1777854726000,-15.39,9.763e-05,2]
[421547400,1777854726000,-15.39,9.763e-05,2]
[421547399,1777854726000,-15.39,9.763e-05,2]
[421547403,1777854727000,-15.39,9.763e-05,2]
[421547402,1777854727000,-15.39,9.763e-05,2]
[421547401,1777854727000,-15.39,9.763e-05,2]
[421547407,1777854729000,-92.14898274,0.00010983,2]
[421547406,1777854729000,-150.0,0.00010442,2]
[421547405,1777854729000,-817.36550863,9.763e-05,2]
[421547404,1777854729000,-1059.51449137,9.763e-05,2]
[421547408,1777854730000,-915.01,0.00010983,2]
[421547409,1777854731000,-915.01,0.00010983,2]
[421547410,1777854833000,-77.83101726,0.00010983,2]
[421547411,1777854833000,-255.0,0.00011465,2]
[421547413,1777854835000,-915.01,0.00010682,2]
[421547412,1777854835000,4314.0,0.00013699,120]
[421547414,1777854836000,-915.01,0.00010682,2]
[421547415,1777854847000,-173.57,0.00010167,2]
[421547416,1777854848000,-173.57,0.00010167,2]
[421547418,1777854850000,-173.57,0.00010167,2]
[421547417,1777854850000,2604.563863,7.945e-05,2]
[421547419,1777854851000,-173.57,0.00010167,2]
[421547441,1777854852000,-500.0,0.00012017,2]
[421547442,1777854852000,-443.26070709,0.00012017,2]
[421547443,1777854852000,-153.87470685,0.00012017,2]
[421547445,1777854852000,-196.77341648,0.00012017,2]
[421547450,1777854852000,-500.0,0.00012073,2]
[421547449,1777854852000,-420.0,0.00012068,2]
[421547447,1777854852000,-6422.19888832,0.00012018,2]
[421547446,1777854852000,-315377.7628174,0.00012018,2]
[421547458,1777854852000,-164.82491813,0.00012073,2]
[421547448,1777854852000,-897.30105048,0.00012018,2]
[421547452,1777854852000,-234.6849822,0.00012073,2]
[421547454,1777854852000,-500.0,0.00012073,2]
[421547453,1777854852000,-500.0,0.00012073,2]
[421547455,1777854852000,-500.0,0.00012073,2]
[421547457,1777854852000,-500.0,0.00012073,2]
[421547459,1777854852000,-500.0,0.00012073,2]
[421547440,1777854852000,-500.0,0.00012017,2]
[421547444,1777854852000,-500.0,0.00012017,2]
[421547436,1777854852000,-173.57,0.00011936,2]
[421547430,1777854852000,-1308.30942355,0.00010682,2]
[421547435,1777854852000,-4148.83424664,0.00011918,2]
[421547460,1777854852000,-541.00468062,0.00012073,2]
[421547420,1777854852000,394.85995972,7.888e-05,2]
[421547421,1777854852000,-150.0,8.581e-05,2]
[421547422,1777854852000,-205.72,0.00010167,2]
[421547426,1777854852000,-885.56582339,0.00010682,2]
[421547427,1777854852000,-367.55852767,0.00010682,2]
[421547428,1777854852000,-1289.0,0.00010682,2]
[421547424,1777854852000,-227.0,0.00010681,2]
[421547425,1777854852000,-586.0,0.00010682,2]
[421547423,1777854852000,-1200.0,0.00010681,2]
[421547429,1777854852000,-173.57,0.00010682,2]
[421547432,1777854852000,-213.32344157,0.00011749,2]
[421547433,1777854852000,-1466.67655843,0.00011749,2]
[421547431,1777854852000,-300.0,0.00010982,2]
[421547434,1777854852000,-2201.8662781,0.000119,3]
[421547437,1777854852000,-820050.72532418,0.00012,2]
[421547439,1777854852000,-190.79955639,0.00012017,2]
[421547438,1777854852000,-150.0,0.00012016,2]
[421547456,1777854852000,-500.0,0.00012073,2]
[421547451,1777854852000,-500.0,0.00012073,2]
[421547461,1777854852000,-500.0,0.00012073,2]
[421547484,1777854852000,-1115.01,0.00012762,2]
[421547483,1777854852000,-500.0,0.00012621,2]
[421547486,1777854852000,-808.31,0.00012943,2]
[421547487,1777854852000,-188.96,0.00012974,2]
[421547488,1777854852000,-255.0,0.00013097,2]
[421547492,1777854852000,-479.98152352,0.00013168,2]
[421547489,1777854852000,-500.0,0.00013121,2]
[421547494,1777854852000,-587.0,0.00013262,2]
[421547482,1777854852000,-1000.0,0.00012621,2]
[421547490,1777854852000,-503.26573122,0.00013168,2]
[421547496,1777854852000,-188.96,0.00013493,2]
[421547495,1777854852000,-2000.0,0.00013424,2]
[421547497,1777854852000,-500.0,0.00013673,2]
[421547498,1777854852000,-170.0488782,0.00013673,2]
[421547499,1777854852000,-299.99,0.00013699,2]
[421547502,1777854852000,-200.0,0.00013699,2]
[421547501,1777854852000,-9999.99,0.00013699,2]
[421547463,1777854852000,-2000.0,0.00012203,2]
[421547493,1777854852000,-1000.0,0.00013168,2]
[421547481,1777854852000,-1000.0,0.00012621,2]
[421547491,1777854852000,-1500.0,0.00013168,2]
[421547485,1777854852000,-2351.0,0.00012924,2]
[421547462,1777854852000,-500.0,0.00012073,2]
[421547464,1777854852000,-200.0,0.00012301,2]
[421547478,1777854852000,-500.40570533,0.00012621,2]
[421547466,1777854852000,-307.4860675,0.00012342,2]
[421547470,1777854852000,-1000.0,0.00012557,2]
[421547467,1777854852000,-383.98482026,0.00012342,2]
[421547469,1777854852000,-2126.62136106,0.00012457,2]
[421547468,1777854852000,-188.96,0.00012455,2]
[421547500,1777854852000,-3865.56,0.00013699,2]
[421547465,1777854852000,-1869.14170773,0.00012342,2]
[421547471,1777854852000,-300.0,0.00012557,2]
[421547473,1777854852000,-398.0,0.00012596,5]
[421547474,1777854852000,-1000.0,0.00012621,2]
[421547475,1777854852000,-500.0,0.00012621,2]
[421547476,1777854852000,-572.09413596,0.00012621,2]
[421547477,1777854852000,-463.14071928,0.00012621,2]
[421547479,1777854852000,-172.07828398,0.00012621,2]
[421547480,1777854852000,-1000.0,0.00012621,2]
[421547472,1777854852000,-500.0,0.00012573,2]
[421547516,1777854853000,-152650.06297505,0.0001404,2]
[421547511,1777854853000,-166.66,0.00013973,2]
[421547515,1777854853000,-188.96,0.00014012,2]
[421547517,1777854853000,-250566.56124358,0.0001404,2]
[421547514,1777854853000,-150.0,0.00014012,2]
[421547513,1777854853000,-506.0086978,0.00014,2]
[421547512,1777854853000,-250.0,0.00014,2]
[421547506,1777854853000,-155.0,0.00013813,2]
[421547509,1777854853000,-1115.01,0.00013923,2]
[421547508,1777854853000,-500.0,0.00013836,2]
[421547504,1777854853000,-5318.16,0.00013699,2]
[421547505,1777854853000,-2526.85,0.00013746,2]
[421547503,1777854853000,-166.66,0.00013699,2]
[421547518,1777854853000,-123907.97563157,0.0001404,2]
[421547510,1777854853000,-497.0,0.00013937,5]